bitfinex/quotes_BTCUSD_20250529
["timestamp","ask_amount","ask_price","bid_price","bid_amount"]
[1748490079826,0.20421543,107990.0,107980.0,0.18062601]
[1748490080331,0.20421543,107990.0,107980.0,0.18875183]
[1748490080574,0.20421543,107990.0,107980.0,0.19742601]
[1748490080786,0.20421543,107990.0,107980.0,0.18875183]
[1748490081034,0.20421543,107990.0,107980.0,0.19742641]
[1748490081284,0.20421543,107990.0,107980.0,0.197427]
[1748490082247,0.20421543,107990.0,107980.0,0.213627]
[1748490082697,0.20421543,107990.0,107980.0,0.21362816]
[1748490084177,0.20421543,107990.0,107980.0,0.21362819]
[1748490084590,0.20421543,107990.0,107980.0,0.21362823]
[1748490084807,0.20421543,107990.0,107980.0,0.20495183]
[1748490085027,0.20421543,107990.0,107980.0,0.21362823]
[1748490085685,0.20421543,107990.0,107980.0,0.21362803]
[1748490087371,0.20421543,107990.0,107980.0,0.21362806]
[1748490087782,0.20421543,107990.0,107980.0,0.21362794]
[1748490088181,0.20421543,107990.0,107980.0,0.20495183]
[1748490089615,0.20421543,107990.0,107980.0,0.21362783]
[1748490090140,0.20421543,107990.0,107980.0,0.20495183]
[1748490091215,0.20421543,107990.0,107980.0,0.2136278]
[1748490091413,0.20421543,107990.0,107980.0,0.22230377]
[1748490091538,0.20421543,107990.0,107980.0,0.2136278]
[1748490091941,0.20421543,107990.0,107980.0,0.22230367]
[1748490092559,0.20421543,107990.0,107980.0,0.22230382]
[1748490092766,0.20421543,107990.0,107980.0,0.22230379]
[1748490092984,0.20421543,107990.0,107980.0,0.22230375]
[1748490093206,0.20421543,107990.0,107980.0,0.2136278]
[1748490093683,0.20421543,107990.0,107980.0,0.22230376]
[1748490094318,0.20421543,107990.0,107980.0,0.2136278]
[1748490094527,0.20421543,107990.0,107980.0,0.2223039]
[1748490094730,0.20421543,107990.0,107980.0,0.22230401]
[1748490095569,0.20421543,107990.0,107980.0,0.22230412]
[1748490095776,0.20421543,107990.0,107980.0,0.31335807]
[1748490096000,0.20421543,107990.0,107980.0,0.94745296]
[1748490096237,0.20421543,107990.0,107980.0,0.94987979]
[1748490097995,0.20421543,107990.0,107980.0,0.96720576]
[1748490098204,0.20421543,107990.0,107980.0,0.6103849]
[1748490098419,0.20421543,107990.0,107980.0,0.96720581]
[1748490098633,0.20421543,107990.0,107980.0,0.94987979]
[1748490098864,0.20421543,107990.0,107980.0,1.16168618]
[1748490099084,0.18569581,107990.0,107980.0,1.2606345]
[1748490099727,0.18569581,107990.0,107980.0,0.96603004]
[1748490100165,0.18569581,107990.0,107980.0,0.94870856]
[1748490100398,0.18569581,107990.0,107980.0,0.96602993]
[1748490100873,0.18569581,107990.0,107980.0,0.96602989]
[1748490101114,0.18569581,107990.0,107980.0,0.96602632]
[1748490101352,0.18569581,107990.0,107980.0,0.96602635]
[1748490102012,0.18569581,107990.0,107980.0,0.96602399]
[1748490102454,0.18569581,107990.0,107980.0,0.966024]
[1748490103267,0.18569581,107990.0,107980.0,0.96601479]
[1748490103710,0.18569581,107990.0,107980.0,0.96601306]
[1748490104133,0.16360991,107990.0,107980.0,0.9660131]
[1748490104567,0.16360991,107990.0,107980.0,0.94869935]
[1748490104781,0.16360991,107990.0,107980.0,0.66148936]
[1748490104999,0.16360991,107990.0,107980.0,0.93753664]
[1748490105215,0.16360991,107990.0,107980.0,0.95484964]
[1748490106080,0.16360991,107990.0,107980.0,0.95484794]
[1748490106707,0.16360991,107990.0,107980.0,0.95484732]
[1748490107766,0.16360991,107990.0,107980.0,0.95484626]
[1748490107968,0.16360991,107990.0,107980.0,0.95484597]
[1748490108390,0.16360991,107990.0,107980.0,0.93753664]
[1748490108604,0.16360991,107990.0,107980.0,0.95484597]
[1748490109308,0.16360991,107990.0,107980.0,1.33741664]
[1748490109750,0.16360991,107990.0,107980.0,1.35464579]
[1748490110185,0.16360991,107990.0,107980.0,1.33733664]
[1748490110389,0.16360991,107990.0,107980.0,1.35464594]
[1748490110594,0.16360991,107990.0,107980.0,1.64924594]
[1748490110805,0.16360991,107990.0,107980.0,1.01627105]
[1748490111024,0.16360991,107990.0,107980.0,1.0162718]
[1748490111242,0.16360991,107990.0,107980.0,1.01627231]
[1748490111453,0.16360991,107990.0,107980.0,1.02492763]
[1748490111659,0.16360991,107990.0,107980.0,1.02492771]
[1748490112085,0.16360991,107990.0,107980.0,1.02492883]
[1748490112535,0.16360991,107990.0,107980.0,1.02492988]
[1748490112976,0.16360991,107990.0,107980.0,1.02493096]
[1748490113201,0.16360991,107990.0,107980.0,1.02493192]
[1748490113435,0.16360991,107990.0,107980.0,0.91605192]
[1748490113654,0.16360991,107990.0,107980.0,0.99141847]
[1748490113791,0.16360991,107990.0,107980.0,1.02463192]
[1748490114240,0.16360991,107990.0,107980.0,1.02463347]
[1748490114981,0.16360991,107990.0,107980.0,1.01597712]
[1748490115211,0.16360991,107990.0,107980.0,1.02463681]
[1748490115423,0.16360991,107990.0,107980.0,1.0073201]
[1748490115618,0.16360991,107990.0,107980.0,1.01597846]
[1748490115864,0.16360991,107990.0,107980.0,1.02463906]
[1748490116248,0.16360991,107990.0,107980.0,1.02464055]
[1748490116482,0.16360991,107990.0,107980.0,0.73004052]
[1748490116691,0.16360991,107990.0,107980.0,0.63736052]
[1748490116856,0.16360991,107990.0,107980.0,0.6973414]
[1748490117046,0.16360991,107990.0,107980.0,0.63530191]
[1748490117251,0.16360991,107990.0,107980.0,0.55290799]
[1748490117657,0.16360991,107990.0,107980.0,0.5803078]
[1748490117862,0.16360991,107990.0,107980.0,0.54424796]
[1748490118188,0.16360991,107990.0,107980.0,0.5803078]
[1748490118624,0.16360991,107990.0,107980.0,0.58896889]
[1748490118834,0.16360991,107990.0,107980.0,0.5803078]
[1748490119044,0.16360991,107990.0,107980.0,0.58896889]
[1748490119248,0.16360991,107990.0,107980.0,0.60629108]
[1748490119460,0.16360991,107990.0,107980.0,0.54424796]
[1748490119683,0.16360991,107990.0,107980.0,0.5803078]
[1748490120109,0.16360991,107990.0,107980.0,0.58896901]
[1748490120313,0.16360991,107990.0,107980.0,0.5803078]
[1748490120564,0.16360991,107990.0,107980.0,0.59763024]
[1748490120797,0.16360991,107990.0,107980.0,0.5803078]
[1748490121280,0.16360991,107990.0,107980.0,0.54424796]
[1748490121550,0.16360991,107990.0,107980.0,0.5803078]
[1748490121791,0.16360991,107990.0,107980.0,0.58896902]
[1748490122023,0.16360991,107990.0,107980.0,0.5803078]
[1748490122274,0.16360991,107990.0,107980.0,0.62136908]
[1748490122490,0.16360991,107990.0,107980.0,0.6127078]
[1748490122708,0.16360991,107990.0,107980.0,0.63869666]
[1748490122902,0.16360991,107990.0,107980.0,0.63003371]
[1748490123112,0.16360991,107990.0,107980.0,0.63869666]
[1748490123556,0.16360991,107990.0,107980.0,0.63869663]
[1748490124017,0.16360991,107990.0,107980.0,0.6127078]
[1748490124184,0.16360991,107990.0,107980.0,0.63870152]
[1748490124421,0.16360991,107990.0,107980.0,0.63003695]
[1748490124658,0.16360991,107990.0,107980.0,0.59743695]
[1748490124879,0.16360991,107990.0,107980.0,0.62343795]
[1748490125132,0.16360991,107990.0,107980.0,0.59743695]
[1748490126051,0.16360991,107990.0,107980.0,0.60610799]
[1748490126273,0.16360991,107990.0,107980.0,0.59743695]
[1748490126524,0.16360991,107990.0,107980.0,0.60610799]
[1748490126736,0.16360991,107990.0,107980.0,0.59743695]
[1748490126978,0.16360991,107990.0,107980.0,0.63003695]
[1748490127674,0.16360991,107990.0,107980.0,0.3212109]
[1748490128832,0.16360991,107990.0,107980.0,0.32988155]
[1748490129057,0.16360991,107990.0,107980.0,0.3212109]
[1748490129286,0.16360991,107990.0,107980.0,0.32988139]
[1748490129505,0.16360991,107990.0,107980.0,0.33855191]
[1748490129710,0.16360991,107990.0,107980.0,0.3212109]
[1748490129924,0.16360991,107990.0,107980.0,0.3298814]
[1748490130119,0.16360991,107990.0,107980.0,0.33855153]
[1748490130335,0.16360991,107990.0,107980.0,0.33855155]
[1748490130541,0.16360991,107990.0,107980.0,0.3212109]
[1748490130752,0.16360991,107990.0,107980.0,0.33855158]
[1748490130963,0.16360991,107990.0,107980.0,0.3212109]
[1748490131393,0.16360991,107990.0,107980.0,0.33855172]
[1748490131608,0.16360991,107990.0,107980.0,0.3212109]
[1748490132900,0.16360991,107990.0,107980.0,0.62296489]
[1748490133121,0.16360991,107990.0,107980.0,0.63406217]
[1748490133340,0.16360991,107990.0,107980.0,0.33230818]
[1748490134016,0.16360991,107990.0,107980.0,0.23982818]
[1748490134277,0.16360991,107990.0,107980.0,0.3496482]
[1748490134507,0.16360991,107990.0,107980.0,0.33230818]
[1748490134950,0.16360991,107990.0,107980.0,0.34097829]
[1748490135179,0.16360991,107990.0,107980.0,0.35831813]
[1748490135394,0.16360991,107990.0,107980.0,0.34097816]
[1748490135615,0.16360991,107990.0,107980.0,0.23982818]
[1748490135814,0.16360991,107990.0,107980.0,0.34964815]
[1748490136036,0.16360991,107990.0,107980.0,0.33230818]
[1748490136253,0.16360991,107990.0,107980.0,0.34097761]
[1748490136703,0.16360991,107990.0,107980.0,0.3409776]
[1748490136932,0.16360991,107990.0,107980.0,0.34964831]
[1748490137145,0.16360991,107990.0,107980.0,0.26583865]
[1748490137363,0.16360991,107990.0,107980.0,0.33230762]
[1748490138017,0.16360991,107990.0,107980.0,0.34964957]
[1748490138256,0.16360991,107990.0,107980.0,0.33230762]
[1748490138919,0.16360991,107990.0,107980.0,0.35832423]
[1748490139155,0.16360991,107990.0,107980.0,0.34965203]
[1748490139427,0.50360991,107990.0,107980.0,0.29700893]
[1748490139653,0.50360991,107990.0,107980.0,0.34931752]
[1748490139885,0.50360991,107990.0,107980.0,0.2409181]
[1748490140561,0.16360991,107990.0,107980.0,0.2409181]
[1748490140983,0.16360991,107990.0,107980.0,0.26519457]
[1748490141197,0.16360991,107990.0,107980.0,0.2409181]
[1748490141636,0.16360991,107990.0,107980.0,0.26519466]
[1748490141850,0.16360991,107990.0,107980.0,0.29784773]
[1748490142064,0.16360991,107990.0,107980.0,0.29784759]
[1748490142489,0.16360991,107990.0,107980.0,0.29784768]
[1748490142925,0.16360991,107990.0,107980.0,0.2978475]
[1748490143741,0.16360991,107990.0,107980.0,0.26519443]
[1748490143952,0.16360991,107990.0,107980.0,0.28253685]
[1748490144479,0.16360991,107990.0,107980.0,0.28118722]
[1748490144693,0.16360991,107990.0,107980.0,0.2725181]
[1748490144911,0.16360991,107990.0,107980.0,0.28118691]
[1748490145123,0.16360991,107990.0,107980.0,0.25517801]
[1748490146003,0.16360991,107990.0,107980.0,0.27251554]
[1748490146222,0.16360991,107990.0,107980.0,0.25517801]
[1748490146458,0.16360991,107990.0,107980.0,0.26384654]
[1748490146691,0.16360991,107990.0,107980.0,0.25517801]
[1748490147394,0.16360991,107990.0,107980.0,0.26384697]
[1748490147610,0.16360991,107990.0,107980.0,0.27251585]
[1748490147826,0.16360991,107990.0,107980.0,0.25517801]
[1748490148038,0.16360991,107990.0,107980.0,0.28118498]
[1748490148668,0.16360991,107990.0,107980.0,0.28118485]
[1748490149101,0.16360991,107990.0,107980.0,0.28118484]
[1748490150632,0.16360991,107990.0,107980.0,0.2811878]
[1748490151086,0.16360991,107990.0,107980.0,0.2811893]
[1748490151323,0.16360991,107990.0,107980.0,0.28119058]
[1748490151777,0.16360991,107990.0,107980.0,0.2811912]
[1748490152235,0.16360991,107990.0,107980.0,0.26384907]
[1748490152445,0.16360991,107990.0,107980.0,0.28119272]
[1748490152898,0.16360991,107990.0,107980.0,0.28119536]
[1748490153117,0.16360991,107990.0,107980.0,0.25517801]
[1748490153579,0.16360991,107990.0,107980.0,0.27252293]
[1748490153796,0.16360991,107990.0,107980.0,0.26385047]
[1748490154010,0.16360991,107990.0,107980.0,0.27252293]
[1748490154236,0.16360991,107990.0,107980.0,0.25517801]
[1748490154889,0.16360991,107990.0,107980.0,0.27252293]
[1748490155314,0.16360991,107990.0,107980.0,0.25517801]
[1748490155521,0.16360991,107990.0,107980.0,0.27252293]
[1748490156168,0.16360991,107990.0,107980.0,0.28119539]
[1748490156379,0.16360991,107990.0,107980.0,0.28986785]
[1748490156593,0.16360991,107990.0,107980.0,0.27252293]
[1748490156816,0.16360991,107990.0,107980.0,0.28119539]
[1748490157032,0.19140191,107990.0,107980.0,0.27252293]
[1748490157683,0.19140191,107990.0,107980.0,0.18871539]
[1748490157909,0.19140191,107990.0,107980.0,0.27240293]
[1748490158130,0.19140191,107990.0,107980.0,0.29842031]
[1748490158563,0.19140191,107990.0,107980.0,0.28974785]
[1748490158772,0.19140191,107990.0,107980.0,0.29842031]
[1748490158985,0.19140191,107990.0,107980.0,0.26682031]
[1748490159431,0.19140191,107990.0,107980.0,0.14844293]
[1748490159692,0.19140191,107990.0,107980.0,0.24080293]
[1748490159913,0.19140191,107990.0,107980.0,0.25814915]
[1748490160156,0.19140191,107990.0,107980.0,0.24080293]
[1748490160638,0.19140191,107990.0,107980.0,0.25815573]
[1748490160889,0.19140191,107990.0,107980.0,0.24080293]
[1748490161142,0.19140191,107990.0,107980.0,0.25815576]
[1748490161369,0.19140191,107990.0,107980.0,0.26683218]
[1748490161822,0.19140191,107990.0,107980.0,0.25815587]
[1748490162058,0.19140191,107990.0,107980.0,0.26683237]
[1748490162545,0.19140191,107990.0,107980.0,0.26683048]
[1748490163008,0.19140191,107990.0,107980.0,0.26683047]
[1748490163474,0.19140191,107990.0,107980.0,0.24080293]
[1748490163700,0.19140191,107990.0,107980.0,0.26682907]
[1748490163942,0.19140191,107990.0,107980.0,0.24947831]
[1748490164395,0.19140191,107990.0,107980.0,0.26682829]
[1748490164636,0.19140191,107990.0,107980.0,0.26682828]
[1748490164852,0.19140191,107990.0,107980.0,0.26682826]
[1748490165311,0.19140191,107990.0,107980.0,0.26682806]
[1748490165561,0.19140191,107990.0,107980.0,0.26682814]
[1748490165784,0.19140191,107990.0,107980.0,0.26682818]
[1748490166262,0.19140191,107990.0,107980.0,0.24080293]
[1748490166481,0.19140191,107990.0,107980.0,0.26682784]
[1748490166928,0.19140191,107990.0,107980.0,0.24080293]
[1748490167153,0.19140191,107990.0,107980.0,0.26682776]
[1748490167381,0.19140191,107990.0,107980.0,0.24947785]
[1748490167609,0.19140191,107990.0,107980.0,0.26682767]
[1748490167838,0.19140191,107990.0,107980.0,0.26682766]
[1748490168296,0.19140191,107990.0,107980.0,0.26682773]
[1748490168985,0.19140191,107990.0,107980.0,0.26682776]
[1748490169210,0.19140191,107990.0,107980.0,0.26682775]
[1748490169459,0.19140191,107990.0,107980.0,0.24947791]
[1748490169678,0.19140191,107990.0,107980.0,0.24947793]
[1748490169950,0.19140191,107990.0,107980.0,0.26682794]
[1748490170176,0.19140191,107990.0,107980.0,0.25815294]
[1748490170417,0.19140191,107990.0,107980.0,0.26682794]
[1748490170880,0.19140191,107990.0,107980.0,0.24080293]
[1748490171114,0.19140191,107990.0,107980.0,0.26682784]
[1748490171335,0.19140191,107990.0,107980.0,0.24080293]
[1748490171558,0.19140191,107990.0,107980.0,0.25815296]
[1748490171784,0.19140191,107990.0,107980.0,0.26682796]
[1748490172274,0.19140191,107990.0,107980.0,0.26682803]
[1748490172737,0.19140191,107990.0,107980.0,0.26682808]
[1748490172969,0.19140191,107990.0,107980.0,0.26682809]
[1748490173197,0.19140191,107990.0,107980.0,0.24947798]
[1748490173431,0.19140191,107990.0,107980.0,0.26682807]
[1748490173893,0.19140191,107990.0,107980.0,0.26682808]
[1748490174573,0.19140191,107990.0,107980.0,0.26682806]
[1748490174790,0.19140191,107990.0,107980.0,0.26682802]
[1748490175037,0.19140191,107990.0,107980.0,0.25815299]
[1748490177145,0.19140191,107990.0,107980.0,0.30720305]
[1748490177387,0.19140191,107990.0,107980.0,0.29852802]
[1748490177605,0.19140191,107990.0,107980.0,0.28985299]
[1748490177832,0.19140191,107990.0,107980.0,0.31587805]
[1748490178499,0.19140191,107990.0,107980.0,0.31587829]
[1748490178757,0.19140191,107990.0,107980.0,0.28985299]
[1748490178965,0.19140191,107990.0,107980.0,0.31587829]
[1748490179395,0.19140191,107990.0,107980.0,0.31587853]
[1748490180309,0.19140191,107990.0,107980.0,0.29852848]
[1748490180524,0.19140191,107990.0,107980.0,0.31587947]
[1748490181240,0.19140191,107990.0,107980.0,0.31587963]
[1748490181451,0.19140191,107990.0,107980.0,0.31588093]
[1748490181890,0.19140191,107990.0,107980.0,0.30068091]
[1748490182104,0.19140191,107990.0,107980.0,0.31628092]
[1748490182334,0.19140191,107990.0,107980.0,0.31628288]
[1748490182522,0.19140191,107990.0,107980.0,0.31628289]
[1748490183224,0.19140191,107990.0,107980.0,0.31628301]
[1748490183451,0.19140191,107990.0,107980.0,0.31628307]
[1748490183679,0.19140191,107990.0,107980.0,0.31628324]
[1748490185002,0.19140191,107990.0,107980.0,0.30760649]
[1748490185189,0.19140191,107990.0,107980.0,0.30761149]
[1748490185672,0.19140191,107990.0,107980.0,0.30761144]
[1748490185891,0.19140191,107990.0,107980.0,0.30761155]
[1748490186362,0.19140191,107990.0,107980.0,0.28158109]
[1748490186582,0.19140191,107990.0,107980.0,0.3076115]
[1748490186796,0.19140191,107990.0,107980.0,0.30761011]
[1748490187013,0.19140191,107990.0,107980.0,0.29893377]
[1748490187238,0.19140191,107990.0,107980.0,0.29025738]
[1748490187428,0.19140191,107990.0,107980.0,0.30760994]
[1748490187670,0.19140191,107990.0,107980.0,0.29025737]
[1748490187880,0.19140191,107990.0,107980.0,0.30760994]
[1748490188545,0.19140191,107990.0,107980.0,0.30760961]
[1748490188765,0.19140191,107990.0,107980.0,0.30760896]
[1748490188999,0.19140191,107990.0,107980.0,0.30760897]
[1748490189219,0.19140191,107990.0,107980.0,0.28158109]
[1748490189657,0.19140191,107990.0,107980.0,0.29893403]
[1748490189875,0.19140191,107990.0,107980.0,0.3076105]
[1748490190093,0.19140191,107990.0,107980.0,0.39866445]
[1748490190334,0.19140191,107990.0,107980.0,0.39866259]
[1748490190548,0.19140191,107990.0,107980.0,0.3986624]
[1748490191186,0.19140191,107990.0,107980.0,0.39865911]
[1748490191405,0.19140191,107990.0,107980.0,0.37263504]
[1748490191709,0.19140191,107990.0,107980.0,0.38130973]
[1748490191957,0.19140191,107990.0,107980.0,0.37263504]
[1748490192197,0.19140191,107990.0,107980.0,0.38130973]
[1748490192432,0.19140191,107990.0,107980.0,0.38130966]
[1748490192643,0.19140191,107990.0,107980.0,0.37263504]
[1748490193075,0.19140191,107990.0,107980.0,0.38130966]
[1748490193687,0.19140191,107990.0,107980.0,0.7899042]
[1748490193942,0.19140191,107990.0,107980.0,0.80725331]
[1748490194168,0.19140191,107990.0,107980.0,0.79857879]
[1748490194378,0.19140191,107990.0,107980.0,0.78990416]
[1748490194598,0.19140191,107990.0,107980.0,0.78122966]
[1748490194809,0.19140191,107990.0,107980.0,0.78990416]
[1748490195031,0.19140191,107990.0,107980.0,0.78122966]
[1748490195252,0.19140191,107990.0,107980.0,0.7985785]
[1748490195480,0.16360991,107990.0,107980.0,0.78122966]
[1748490195922,0.16360991,107990.0,107980.0,0.78990393]
[1748490196142,0.16360991,107990.0,107980.0,1.1380786]
[1748490196369,0.16360991,107990.0,107980.0,1.13183223]
[1748490196590,0.16360991,107990.0,107980.0,1.14917985]
[1748490196806,0.16360991,107990.0,107980.0,1.44313975]
[1748490197019,0.16360991,107990.0,107980.0,1.42578732]
[1748490197233,0.16360991,107990.0,107980.0,1.44313456]
[1748490197450,0.16360991,107990.0,107980.0,1.44313447]
[1748490197663,0.16360991,107990.0,107980.0,1.08628681]
[1748490197876,0.16360991,107990.0,107980.0,1.42578732]
[1748490198518,0.16360991,107990.0,107980.0,1.11230729]
[1748490198723,0.16360991,107990.0,107980.0,1.1123021]
[1748490199358,0.16360991,107990.0,107980.0,1.11229108]
[1748490199575,0.16360991,107990.0,107980.0,1.40689108]
[1748490199798,0.16360991,107990.0,107980.0,1.74639159]
[1748490200012,0.16360991,107990.0,107980.0,1.7463892]
[1748490200241,0.16360991,107990.0,107980.0,1.73529205]
[1748490202452,0.16360991,107990.0,107980.0,1.39577805]
[1748490202898,0.16360991,107990.0,107980.0,1.73527649]
[1748490203105,0.16360991,107990.0,107980.0,1.73527652]
[1748490203314,0.16360991,107990.0,107980.0,1.73527594]
[1748490203527,0.16360991,107990.0,107980.0,1.72661403]
[1748490203735,0.16360991,107990.0,107980.0,1.70929017]
[1748490203960,0.16360991,107990.0,107980.0,1.73527453]
[1748490204175,0.16360991,107990.0,107980.0,1.39577369]
[1748490204422,0.16360991,107990.0,107980.0,1.735274]
[1748490204640,0.16360991,107990.0,107980.0,1.41533017]
[1748490204856,0.16360991,107990.0,107980.0,1.3780108]
[1748490205076,0.16360991,107990.0,107980.0,1.39533308]
[1748490205525,0.16360991,107990.0,107980.0,1.10073312]
[1748490206207,0.16360991,107990.0,107980.0,1.09207189]
[1748490206438,0.16360991,107990.0,107980.0,1.100733]
[1748490206893,0.16360991,107990.0,107980.0,1.08341076]
[1748490207114,0.16360991,107990.0,107980.0,1.07474966]
[1748490207330,0.16360991,107990.0,107980.0,1.08341076]
[1748490207549,0.16360991,107990.0,107980.0,1.07474966]
[1748490207779,0.16360991,107990.0,107980.0,0.68886966]
[1748490207992,0.16360991,107990.0,107980.0,1.07446966]
[1748490208215,0.16360991,107990.0,107980.0,1.08313081]
[1748490208428,0.16360991,107990.0,107980.0,1.07446966]
[1748490209282,0.16360991,107990.0,107980.0,1.09179224]
[1748490209514,0.16360991,107990.0,107980.0,1.09179232]
[1748490209732,0.16360991,107990.0,107980.0,1.10045365]
[1748490209940,0.16360991,107990.0,107980.0,1.08313095]
[1748490210151,0.16360991,107990.0,107980.0,1.07446966]
[1748490210389,0.16360991,107990.0,107980.0,1.10045354]
[1748490210601,0.16360991,107990.0,107980.0,1.08313095]
[1748490210858,0.16360991,107990.0,107980.0,1.07446966]
[1748490211504,0.16360991,107990.0,107980.0,1.36906966]
[1748490211723,0.16360991,107990.0,107980.0,1.37773117]
[1748490211941,0.16360991,107990.0,107980.0,1.36906966]
[1748490212162,0.16360991,107990.0,107980.0,1.38639269]
[1748490212582,0.16360991,107990.0,107980.0,1.39505422]
[1748490212793,0.16360991,107990.0,107980.0,1.3863927]
[1748490213005,0.16360991,107990.0,107980.0,1.39505459]
[1748490213213,0.19139891,107990.0,107980.0,1.36906966]
[1748490213395,0.19139891,107990.0,107980.0,1.39505531]
[1748490213645,0.19139891,107990.0,107980.0,1.39505642]
[1748490213865,0.19139891,107990.0,107980.0,1.73455749]
[1748490214716,0.19139891,107990.0,107980.0,1.39505698]
[1748490215144,0.19139891,107990.0,107980.0,1.39506046]
[1748490215357,0.19139891,107990.0,107980.0,1.38881199]
[1748490215578,0.19139891,107990.0,107980.0,1.38014838]
[1748490215787,0.19139891,107990.0,107980.0,1.39747945]
[1748490216432,0.19139891,107990.0,107980.0,1.38014998]
[1748490216654,0.19139891,107990.0,107980.0,1.73698453]
[1748490217130,0.19139891,107990.0,107980.0,1.71965202]
[1748490217343,0.19139891,107990.0,107980.0,1.44238539]
[1748490217565,0.19139891,107990.0,107980.0,1.44238541]
[1748490217773,0.19139891,107990.0,107980.0,1.44238631]
[1748490218220,0.19139891,107990.0,107980.0,1.44239554]
[1748490218436,0.19139891,107990.0,107980.0,1.44239547]
[1748490218648,0.19139891,107990.0,107980.0,1.44239503]
[1748490218858,0.19139891,107990.0,107980.0,1.60160907]
[1748490219067,0.19139891,107990.0,107980.0,1.62761397]
[1748490219290,0.20065885,107990.0,107980.0,1.26210856]
[1748490219507,0.20065885,107990.0,107980.0,1.61894546]
[1748490219733,0.20065885,107990.0,107980.0,1.61894543]
[1748490219955,0.20065885,107990.0,107980.0,1.62820631]
[1748490220164,0.20065885,107990.0,107980.0,1.64300568]
[1748490220373,0.20065885,107990.0,107980.0,1.64300561]
[1748490220585,0.20065885,107990.0,107980.0,1.64300557]
[1748490220801,0.20065885,107990.0,107980.0,1.43373457]
[1748490221262,0.20065885,107990.0,107980.0,1.4337351]
[1748490221484,0.20065885,107990.0,107980.0,1.43373508]
[1748490221950,0.20065885,107990.0,107980.0,1.41638959]
[1748490222407,0.20065885,107990.0,107980.0,1.41639036]
[1748490222609,0.20065885,107990.0,107980.0,1.43373511]
[1748490222829,0.20065885,107990.0,107980.0,1.41639036]
[1748490223250,0.20065885,107990.0,107980.0,1.71099036]
[1748490223456,0.20065885,107990.0,107980.0,1.71966286]
[1748490223674,0.20065885,107990.0,107980.0,1.71099036]
[1748490223889,0.20065885,107990.0,107980.0,1.71966283]
[1748490224097,0.20065885,107990.0,107980.0,1.72833531]
[1748490224304,0.20065885,107990.0,107980.0,1.71099036]
[1748490224738,0.20065885,107990.0,107980.0,1.7370078]
[1748490224955,0.20065885,107990.0,107980.0,1.71099036]
[1748490225171,0.20065885,107990.0,107980.0,1.71966285]
[1748490225384,0.20065885,107990.0,107980.0,1.73700784]
[1748490225593,0.20065885,107990.0,107980.0,1.7283352]
[1748490225803,0.20065885,107990.0,107980.0,1.73700761]
[1748490226022,0.20065885,107990.0,107980.0,1.7370076]
[1748490226256,0.20065885,107990.0,107980.0,1.71099036]
[1748490226479,0.20065885,107990.0,107980.0,1.38016228]
[1748490226693,0.20065885,107990.0,107980.0,1.73700765]
[1748490226913,0.20065885,107990.0,107980.0,1.71099036]
[1748490227995,0.20065885,107990.0,107980.0,1.73700797]
[1748490228856,0.20065885,107990.0,107980.0,1.7370078]
[1748490229071,0.20065885,107990.0,107980.0,1.7196628]
[1748490229285,0.20065885,107990.0,107980.0,1.73700768]
[1748490229720,0.20065885,107990.0,107980.0,1.73700769]
[1748490230630,0.20065885,107990.0,107980.0,1.73700735]
[1748490230866,0.20065885,107990.0,107980.0,1.73701172]
[1748490231086,0.20065885,107990.0,107980.0,1.72833939]
[1748490231304,0.20065885,107990.0,107980.0,1.71099473]
[1748490232183,0.20065885,107990.0,107980.0,1.38016652]
[1748490232401,0.20065885,107990.0,107980.0,1.37149422]
[1748490233045,0.20065885,107990.0,107980.0,1.71099473]
[1748490234350,0.20065885,107990.0,107980.0,1.71966684]
[1748490234577,0.20065885,107990.0,107980.0,1.71099473]
[1748490234793,0.20065885,107990.0,107980.0,1.71966676]
[1748490235024,0.20065885,107990.0,107980.0,1.73701083]
[1748490235456,0.20065885,107990.0,107980.0,1.73701121]
[1748490235672,0.20065885,107990.0,107980.0,1.73701143]
[1748490236100,0.20065885,107990.0,107980.0,1.73701141]
[1748490236779,0.20065885,107990.0,107980.0,1.72833925]
[1748490237211,0.20065885,107990.0,107980.0,1.73701175]
[1748490237424,0.20065885,107990.0,107980.0,1.72833976]
[1748490237665,0.20065885,107990.0,107980.0,1.7370123]
[1748490237874,0.20065885,107990.0,107980.0,1.72833968]
[1748490238084,0.20065885,107990.0,107980.0,1.7370122]
[1748490238296,0.20065885,107990.0,107980.0,1.73701244]
[1748490238743,0.20065885,107990.0,107980.0,1.73701243]
[1748490239181,0.20065885,107990.0,107980.0,1.73701247]
[1748490239394,0.20065885,107990.0,107980.0,1.72834014]
[1748490239606,0.20065885,107990.0,107980.0,1.73701272]
[1748490239825,0.20065885,107990.0,107980.0,1.71099498]
[1748490240041,0.20065885,107990.0,107980.0,1.73701302]
[1748490240260,0.20065885,107990.0,107980.0,1.73701303]
[1748490240472,0.20065885,107990.0,107980.0,1.71099498]
[1748490240687,0.20065885,107990.0,107980.0,1.73701303]
[1748490241110,0.20065885,107990.0,107980.0,1.73701332]
[1748490241330,0.20065885,107990.0,107980.0,1.71099498]
[1748490241999,0.20065885,107990.0,107980.0,1.71099563]
[1748490242486,0.20065885,107990.0,107980.0,1.07817512]
[1748490242692,0.20065885,107990.0,107980.0,1.71043563]
[1748490243113,0.20065885,107990.0,107980.0,1.38828085]
[1748490243351,0.20065885,107990.0,107980.0,1.10419376]
[1748490243586,0.20065885,107990.0,107980.0,1.10419382]
[1748490243802,0.20065885,107990.0,107980.0,0.80959425]
[1748490244019,0.20065885,107990.0,107980.0,0.79224851]
[1748490244236,0.20065885,107990.0,107980.0,0.8009219]
[1748490244669,0.20065885,107990.0,107980.0,0.78357512]
[1748490245347,0.20065885,107990.0,107980.0,0.7835926]
[1748490245557,0.20065885,107990.0,107980.0,0.76624597]
[1748490245769,0.20065885,107990.0,107980.0,0.7835926]
[1748490245982,0.20065885,107990.0,107980.0,0.7662474]
[1748490246441,0.20065885,107990.0,107980.0,0.77492104]
[1748490246671,0.20065885,107990.0,107980.0,0.7662474]
[1748490247090,0.20065885,107990.0,107980.0,0.78359584]
[1748490247296,0.20065885,107990.0,107980.0,0.7662474]
[1748490247503,0.20065885,107990.0,107980.0,0.79227005]
[1748490248154,0.20065885,107990.0,107980.0,0.79227157]
[1748490248369,0.20065885,107990.0,107980.0,0.78359685]
[1748490248583,0.20065885,107990.0,107980.0,0.7662474]
[1748490248803,0.20065885,107990.0,107980.0,0.7835966]
[1748490249012,0.20065885,107990.0,107980.0,0.77492202]
[1748490249217,0.20065885,107990.0,107980.0,0.7662474]
[1748490249429,0.20065885,107990.0,107980.0,0.78359661]
[1748490249646,0.20065885,107990.0,107980.0,0.7662474]
[1748490249853,0.20065885,107990.0,107980.0,0.77492201]
[1748490250087,0.20065885,107990.0,107980.0,0.78359662]
[1748490250300,0.20065885,107990.0,107980.0,0.76624817]
[1748490250510,0.20065885,107990.0,107980.0,0.77492276]
[1748490250713,0.20065885,107990.0,107980.0,0.76624817]
[1748490251340,0.20065885,107990.0,107980.0,0.79227497]
[1748490251545,0.20065885,107990.0,107980.0,0.79227492]
[1748490251752,0.20065885,107990.0,107980.0,0.78359948]
[1748490252173,0.20065885,107990.0,107980.0,0.76624817]
[1748490252379,0.20065885,107990.0,107980.0,0.7836001]
[1748490252585,0.20065885,107990.0,107980.0,0.76624877]